[Event "1000GM MLK Day RR IM-Norm 2024"]
[Site "Sunnyvale"]
[Date "2024.01.14"]
[Round "1.1"]
[White "Tang, Dylan"]
[Black "Deng, Henry"]
[Result "1/2-1/2"]
[ECO "B40"]
[WhiteElo "2206"]
[BlackElo "2281"]
[Annotator "RC"]
[PlyCount "53"]
[EventDate "2024.01.12"]
[EventType "tourn"]
[EventCountry "USA"]
[SourceTitle "playchess.com"]
[Source "ChessBase"]
[SourceQuality "1"]
[TimeControl "5400+30"]

1. e4 {[%emt 0:00:07]} c5 {[%emt 0:00:21]} 2. Nf3 {[%emt 0:00:06]} e6 {[%emt 0:00:04]} 3. g3 {[%emt 0:00:07]} d5 {[%emt 0:00:44]} 4. exd5 {[%emt 0:00:05]} exd5 {[%emt 0:00:33]} 5. d4 {[%emt 0:00:21]} cxd4 {[%emt 0:01:48]} 6. Nxd4 {[%emt 0:01:33]} Nc6 {[%emt 0:00:51]} 7. Bg2 {[%emt 0:01:01]} Bc5 {[%emt 0:01:31]} 8. Ne2 {[%emt 0:02:12]} Nf6 {[%emt 0:04:26]} 9. O-O {[%emt 0:01:57]} O-O {[%emt 0:04:35]} 10. Nbc3 {[%emt 0:01:53]} Be6 {[%emt 0:07:12]} 11. Bg5 {[%emt 0:08:19]} h6 {[%emt 0:07:14]} 12. Bxf6 {[%emt 0:01:31]} Qxf6 {[%emt 0:00:23]} 13. Nf4 {[%emt 0:02:45]} Rad8 {[%emt 0:06:18]} 14. Qd3 {[%emt 0:14:43]} Nb4 {[%emt 0:09:24]} 15. Qb5 {[%emt 0:03:17]} b6 {[%emt 0:03:33]} 16. Rad1 {[%emt 0:14:43]} Bd7 {[%emt 0:13:04]} 17. Qe2 {[%emt 0:00:17]} Rfe8 {[%emt 0:04:38]} 18. Qd2 {[%emt 0:05:45]} Bg4 {[%emt 0:03:16]} 19. a3 {[%emt 0:01:42]} Nc6 {[%emt 0:04:19]} 20. Rde1 {[%emt 0:05:03]} Qd4 {[%emt 0:04:21]} 21. Nd3 {[%emt 0:02:01]} Rxe1 {[%emt 0:04:41]} 22. Rxe1 {[%emt 0:01:35]} Bf5 {[%emt 0:00:13]} 23. b4 {[%emt 0:02:53]} Bxd3 {[%emt 0:02:04]} 24. bxc5 {[%emt 0:02:28]} Bc4 {[%emt 0:00:27]} 25. Qxd4 {[%emt 0:00:13]} Nxd4 {[%emt 0:00:02]} 26. cxb6 {[%emt 0:00:11]} axb6 {[%emt 0:00:04]} 27. Rd1 {[%emt 0:00:15]} 1/2-1/2

[Event "1000GM MLK Day RR IM-Norm 2024"]
[Site "Sunnyvale"]
[Date "2024.01.14"]
[Round "1.2"]
[White "Guo, Ethan"]
[Black "Arenas, David"]
[Result "0-1"]
[ECO "B90"]
[WhiteElo "2099"]
[BlackElo "2406"]
[Annotator "RC"]
[PlyCount "88"]
[EventDate "2024.01.12"]
[EventType "tourn"]
[EventCountry "USA"]
[SourceTitle "playchess.com"]
[Source "ChessBase"]
[SourceQuality "1"]
[TimeControl "5400+30"]

1. e4 {[%emt 0:06:04]} c5 {[%emt 0:03:28]} 2. Nf3 {[%emt 0:00:06]} d6 {[%emt 0:00:08]} 3. d4 {[%emt 0:00:05]} Nf6 {[%emt 0:00:07]} 4. Nc3 {[%emt 1:26:15]} cxd4 {[%emt 1:28:47]} 5. Nxd4 a6 6. Qd3 g6 7. f3 Bg7 8. Be3 Nbd7 9. O-O-O b5 10. g4 Bb7 11. g5 Nh5 12. f4 Nc5 13. Qe2 Nxe4 14. Nxe4 Bxe4 15. Bg2 Bxg2 16. Qxg2 O-O 17. Kb1 Rc8 18. Ne2 Qc7 19. Ng3 Nxg3 20. hxg3 Bxb2 {[%emt 0:00:00]} 21. Kxb2 {[%emt 0:00:00]} Qc3+ {[%emt 0:00:00]} 22. Kb1 {[%emt 0:00:00]} Qxe3 {[%emt 0:00:00]} 23. Rd3 {[%emt 0:00:00]} Qc5 {[%emt 0:00:00]} 24. Qh2 {[%emt 0:10:00]} h5 25. gxh6 Qb4+ 26. Rb3 Qe4 27. Rc1 Rc4 28. Qd2 Qd4 29. Qe2 Rfc8 30. f5 Qe4 31. Qxe4 {[%emt 0:00:00]} Rf8 {[%emt 0:00:00]} 32. Qe2 {[%emt 0:00:00]} Rfc8 {[%emt 0:00:00]} 33. Qe4 {[%emt 0:00:00]} Rxe4 {[%emt 0:00:00]} 34. fxg6 {[%emt 0:00:00]} fxg6 {[%emt 0:00:00]} 35. Rf3 {[%emt 0:00:00]} Rc5 {[%emt 0:00:00]} 36. Rh1 {[%emt 0:00:00]} Rh5 {[%emt 0:00:00]} 37. Rxh5 {[%emt 0:00:00]} gxh5 {[%emt 0:00:00]} 38. Ra3 {[%emt 0:00:00]} Rg4 {[%emt 0:00:00]} 39. Rxa6 {[%emt 0:00:00]} Rxg3 {[%emt 0:00:00]} 40. Ra5 {[%emt 0:00:00]} Rg5 {[%emt 0:00:00]} 41. Ra3 {[%emt 0:00:00]} h4 {[%emt 0:00:00]} 42. Re3 {[%emt 0:00:00]} Kf7 {[%emt 0:00:00]} 43. Rf3+ {[%emt 0:00:00]} Kg6 {[%emt 0:00:00]} 44. h7 {[%emt 0:00:00]} Rh5 {[%emt 0:00:00]} 0-1

[Event "1000GM MLK Day RR IM-Norm 2024"]
[Site "Sunnyvale"]
[Date "2024.01.14"]
[Round "1.4"]
[White "Dominguez Aguilar, Guillermo"]
[Black "Chiang, Jacob"]
[Result "1-0"]
[ECO "B70"]
[WhiteElo "2319"]
[BlackElo "2200"]
[Annotator "RC"]
[PlyCount "93"]
[EventDate "2024.01.12"]
[EventType "tourn"]
[EventCountry "USA"]
[SourceTitle "playchess.com"]
[Source "ChessBase"]
[SourceQuality "1"]
[TimeControl "5400+30"]

1. e4 {[%emt 0:00:03]} c5 {[%emt 0:00:02]} 2. Nf3 {[%emt 0:00:08]} Nc6 {[%emt 0:00:04]} 3. d4 {[%emt 0:00:26]} cxd4 {[%emt 0:00:03]} 4. Nxd4 {[%emt 0:00:05]} Nf6 {[%emt 0:00:13]} 5. Nc3 {[%emt 0:00:08]} d6 {[%emt 0:00:13]} 6. g3 {[%emt 0:01:26]} g6 {[%emt 0:03:10]} 7. Bg2 {[%emt 0:01:26]} Bg7 {[%emt 0:03:16]} 8. Nxc6 {[%emt 0:07:00]} bxc6 {[%emt 0:00:04]} 9. e5 {[%emt 0:00:20]} dxe5 {[%emt 0:00:14]} 10. Qxd8+ {[%emt 0:00:42]} Kxd8 {[%emt 0:00:07]} 11. Bxc6 {[%emt 0:00:07]} Rb8 {[%emt 0:00:55]} 12. Be3 {[%emt 0:03:13]} Bb7 {[%emt 0:07:53]} 13. O-O-O+ {[%emt 0:03:40]} Kc8 {[%emt 0:10:03]} 14. Bxb7+ {[%emt 0:01:43]} Rxb7 {[%emt 0:00:08]} 15. a4 {[%emt 0:00:19]} Ng4 {[%emt 0:09:11]} 16. Rd5 {[%emt 0:05:31]} Nxe3 {[%emt 0:03:41]} 17. fxe3 {[%emt 0:00:03]} Rd8 {[%emt 0:02:29]} 18. Rc5+ {[%emt 0:00:44]} Rc7 {[%emt 0:57:44]} 19. Ra5 {[%emt 0:01:00]} Rcd7 {[%emt 0:00:00]} 20. Rf1 {[%emt 0:03:00]} f5 {[%emt 0:00:00]} 21. e4 {[%emt 0:02:12]} e6 {[%emt 0:00:00]} 22. Ra6 {[%emt 0:00:42]} Re7 {[%emt 0:00:00]} 23. Rc6+ {[%emt 0:05:00]} Kb7 {[%emt 0:00:00]} 24. Rc5 a6 {[%emt 0:00:00]} 25. b4 Rc7 {[%emt 0:03:30]} 26. Rxc7+ {[%emt 0:04:17]} Kxc7 {[%emt 0:00:00]} 27. Rf3 {[%emt 0:04:25]} Bh6+ {[%emt 0:01:00]} 28. Kb2 Rd2 29. h3 Bf8 30. g4 f4 31. Kb3 Be7 {[%emt 0:00:00]} 32. Rd3 {[%emt 0:03:06]} Rf2 {[%emt 0:00:00]} 33. Nb1 {[%emt 0:00:30]} Re2 {[%emt 0:00:00]} 34. Nd2 {[%emt 0:00:30]} Bh4 {[%emt 0:00:00]} 35. Nf3 {[%emt 0:00:30]} Be1 {[%emt 0:00:00]} 36. Nxe5 {[%emt 0:00:30]} Rxe4 {[%emt 0:00:00]} 37. Nc4 {[%emt 0:00:30]} e5 {[%emt 0:00:00]} 38. b5 {[%emt 0:00:30]} axb5 {[%emt 0:00:00]} 39. axb5 {[%emt 0:00:30]} Bf2 {[%emt 0:00:00]} 40. Rd5 {[%emt 0:00:30]} Bd4 {[%emt 0:00:00]} 41. c3 {[%emt 0:00:30]} f3 {[%emt 0:00:00]} 42. cxd4 {[%emt 0:00:30]} f2 {[%emt 0:00:00]} 43. b6+ {[%emt 0:00:30]} Kb7 {[%emt 0:00:00]} 44. Rd7+ {[%emt 0:00:30]} Kc8 {[%emt 0:00:00]} 45. Rf7 {[%emt 0:00:30]} Rxd4 {[%emt 0:00:00]} 46. Nxe5 {[%emt 0:00:30]} Rd6 {[%emt 0:00:00]} 47. Nc4 {[%emt 0:00:30]} 1-0

[Event "1000GM MLK Day RR IM-Norm 2024"]
[Site "Sunnyvale"]
[Date "2024.01.14"]
[Round "1.5"]
[White "Guo, Andrew"]
[Black "Bansal, Advay"]
[Result "1/2-1/2"]
[ECO "D77"]
[WhiteElo "2255"]
[BlackElo "2253"]
[Annotator "RC"]
[PlyCount "48"]
[EventDate "2024.01.12"]
[EventType "tourn"]
[EventCountry "USA"]
[SourceTitle "playchess.com"]
[Source "ChessBase"]
[SourceQuality "1"]
[TimeControl "5400+30"]

1. d4 {[%emt 0:00:01]} Nf6 {[%emt 0:00:08]} 2. c4 {[%emt 0:00:07]} g6 {[%emt 0:00:09]} 3. Nf3 {[%emt 0:00:04]} Bg7 {[%emt 0:00:07]} 4. g3 {[%emt 0:00:09]} O-O {[%emt 0:00:15]} 5. Bg2 {[%emt 0:00:03]} d5 {[%emt 0:00:15]} 6. O-O {[%emt 0:00:04]} dxc4 {[%emt 0:00:06]} 7. Na3 {[%emt 0:00:06]} c5 {[%emt 0:00:08]} 8. Nxc4 {[%emt 0:00:03]} Be6 {[%emt 0:00:20]} 9. Nfe5 {[%emt 0:00:06]} Qc8 {[%emt 0:00:23]} 10. dxc5 {[%emt 0:00:24]} Nfd7 {[%emt 0:00:10]} 11. c6 {[%emt 0:00:16]} Nxc6 {[%emt 0:01:48]} 12. Nxc6 {[%emt 0:00:04]} bxc6 {[%emt 0:00:14]} 13. Na5 {[%emt 0:00:01]} Bd5 {[%emt 0:00:06]} 14. Bxd5 {[%emt 0:00:05]} cxd5 {[%emt 0:00:07]} 15. Qxd5 {[%emt 0:00:03]} Nf6 {[%emt 0:00:11]} 16. Qf3 {[%emt 0:00:10]} Qe6 {[%emt 0:00:19]} 17. Nb3 {[%emt 0:00:06]} Ne4 {[%emt 0:03:04]} 18. Rb1 {[%emt 0:00:11]} Rfd8 {[%emt 0:15:54]} 19. Be3 {[%emt 0:02:55]} a5 {[%emt 0:13:49]} 20. Rfd1 {[%emt 0:07:49]} f5 {[%emt 0:07:03]} 21. Nc5 {[%emt 0:09:21]} Nxc5 {[%emt 0:00:25]} 22. Bxc5 {[%emt 0:00:04]} Rxd1+ {[%emt 0:01:16]} 23. Rxd1 {[%emt 0:02:42]} Rc8 {[%emt 0:00:06]} 24. Ba3 {[%emt 0:22:39]} Rc2 {[%emt 0:56:07]} 1/2-1/2

[Event "1000GM MLK Day RR IM-Norm 2024"]
[Site "Sunnyvale"]
[Date "2024.01.15"]
[Round "2.1"]
[White "Deng, Henry"]
[Black "Bansal, Advay"]
[Result "1-0"]
[ECO "B23"]
[WhiteElo "2281"]
[BlackElo "2253"]
[Annotator "RC"]
[PlyCount "55"]
[EventDate "2024.01.12"]
[EventType "tourn"]
[EventCountry "USA"]
[SourceTitle "playchess.com"]
[Source "ChessBase"]
[SourceQuality "1"]
[TimeControl "5400+30"]

1. e4 {[%emt 0:00:00]} c5 {[%emt 0:01:30]} 2. Nc3 {[%emt 0:00:08]} d6 {[%emt 0:00:06]} 3. Bb5+ {[%emt 0:00:20]} Bd7 {[%emt 0:00:08]} 4. Bxd7+ {[%emt 0:00:20]} Qxd7 {[%emt 0:00:05]} 5. d4 {[%emt 0:00:47]} cxd4 {[%emt 0:00:07]} 6. Qxd4 {[%emt 0:00:04]} Nc6 {[%emt 0:00:05]} 7. Qd3 {[%emt 0:00:03]} g6 {[%emt 0:00:11]} 8. Nf3 {[%emt 0:00:08]} Bg7 {[%emt 0:00:08]} 9. O-O {[%emt 0:00:29]} Nf6 {[%emt 0:00:07]} 10. Nd5 {[%emt 0:00:30]} O-O {[%emt 0:00:08]} 11. c3 {[%emt 0:00:23]} Nh5 {[%emt 0:00:35]} 12. Rd1 {[%emt 0:00:37]} e6 {[%emt 0:00:29]} 13. Nf4 {[%emt 0:00:49]} Nf6 {[%emt 0:00:11]} 14. e5 {[%emt 0:01:33]} Ne8 {[%emt 0:00:07]} 15. exd6 {[%emt 0:00:17]} Rd8 {[%emt 0:02:01]} 16. Be3 {[%emt 0:04:41]} e5 {[%emt 0:04:30]} 17. Ne2 {[%emt 0:02:39]} b6 {[%emt 0:01:41]} 18. Ng3 {[%emt 0:05:53]} Qb7 {[%emt 0:07:13]} 19. Ne4 {[%emt 0:10:26]} f5 {[%emt 0:11:11]} 20. d7 {[%emt 0:09:07]} Kh8 {[%emt 0:22:42]} 21. dxe8=Q {[%emt 0:04:39]} Rxd3 {[%emt 0:00:05]} 22. Qe6 {[%emt 0:00:54]} Nd8 {[%emt 0:07:53]} 23. Nd6 {[%emt 0:10:15]} Qc6 {[%emt 0:20:24]} 24. Nxe5 {[%emt 0:01:22]} Rxd1+ {[%emt 0:03:49]} 25. Rxd1 {[%emt 0:46:36]} Qa4 {[%emt 0:00:03]} 26. Nef7+ {[%emt 0:00:00]} Nxf7 {[%emt 0:01:00]} 27. Nxf7+ {[%emt 0:00:00]} Rxf7 {[%emt 0:00:04]} 28. Rd8+ {[%emt 0:00:00]} 1-0

[Event "1000GM MLK Day RR IM-Norm 2024"]
[Site "Sunnyvale"]
[Date "2024.01.15"]
[Round "2.2"]
[White "Chiang, Jacob"]
[Black "Guo, Andrew"]
[Result "*"]
[ECO "E92"]
[WhiteElo "2200"]
[BlackElo "2255"]
[Annotator "RC"]
[PlyCount "58"]
[EventDate "2024.01.12"]
[EventType "tourn"]
[EventCountry "USA"]
[SourceTitle "playchess.com"]
[Source "ChessBase"]
[SourceQuality "1"]
[TimeControl "5400+30"]

1. c4 {[%emt 0:00:01]} g6 {[%emt 0:00:05]} 2. Nc3 {[%emt 1:31:29]} Bg7 {[%emt 0:00:03]} 3. d4 {[%emt 0:00:00]} Nf6 {[%emt 0:00:10]} 4. e4 {[%emt 0:00:00]} d6 {[%emt 0:00:04]} 5. Be2 {[%emt 0:00:00]} O-O {[%emt 0:00:07]} 6. Be3 {[%emt 0:00:00]} Nc6 {[%emt 0:00:30]} 7. Nf3 e5 {[%emt 0:00:30]} 8. d5 {[%emt 0:00:00]} Ne7 {[%emt 0:07:47]} 9. Nd2 {[%emt 0:00:00]} Nd7 {[%emt 0:02:17]} 10. O-O {[%emt 0:00:00]} c5 {[%emt 0:05:33]} 11. dxc6 {[%emt 0:00:00]} bxc6 {[%emt 0:02:18]} 12. Nf3 {[%emt 0:00:00]} Nf6 {[%emt 0:07:20]} 13. c5 d5 {[%emt 0:00:00]} 14. Nxe5 {[%emt 0:00:00]} Nxe4 {[%emt 0:00:08]} 15. Nxe4 {[%emt 0:00:00]} Bxe5 {[%emt 0:02:33]} 16. Nd6 {[%emt 0:00:00]} Bxd6 {[%emt 0:08:52]} 17. cxd6 {[%emt 0:00:00]} Nf5 {[%emt 0:00:12]} 18. Bc5 {[%emt 0:00:00]} Nxd6 {[%emt 1:01:01]} 19. Bd3 {[%emt 0:00:00]} Re8 {[%emt 0:00:00]} 20. Re1 {[%emt 0:00:00]} Rxe1+ {[%emt 0:00:00]} 21. Qxe1 {[%emt 0:00:00]} Bf5 {[%emt 0:00:00]} 22. Qe5 {[%emt 0:00:00]} f6 {[%emt 0:00:00]} 23. Qf4 {[%emt 0:00:00]} Nb7 {[%emt 0:00:00]} 24. Bxf5 {[%emt 0:00:00]} Nxc5 {[%emt 0:00:00]} 25. Rc1 {[%emt 0:00:00]} Qe7 {[%emt 0:00:00]} 26. Qe3 {[%emt 0:00:00]} Qxe3 {[%emt 0:00:00]} 27. fxe3 {[%emt 0:00:00]} gxf5 {[%emt 0:00:00]} 28. Rxc5 {[%emt 0:00:00]} Rb8 {[%emt 0:05:00]} 29. Rxc6 Rxb2 {[%emt 0:00:30]} *

[Event "1000GM MLK Day RR IM-Norm 2024"]
[Site "Sunnyvale"]
[Date "2024.01.15"]
[Round "2.3"]
[White "Delgado Ramirez, Neuris"]
[Black "Dominguez Aguilar, Guillermo"]
[Result "1-0"]
[ECO "B50"]
[WhiteElo "2517"]
[BlackElo "2319"]
[Annotator "RC"]
[PlyCount "81"]
[EventDate "2024.01.12"]
[EventType "tourn"]
[EventCountry "USA"]
[SourceTitle "playchess.com"]
[Source "ChessBase"]
[SourceQuality "1"]
[TimeControl "5400+30"]

1. e4 {[%emt 0:00:08]} c5 {[%emt 0:00:11]} 2. Nf3 {[%emt 0:00:06]} d6 {[%emt 0:00:27]} 3. Bc4 {[%emt 0:00:18]} Nf6 {[%emt 0:01:16]} 4. d3 {[%emt 0:00:06]} a6 {[%emt 0:00:40]} 5. c3 {[%emt 0:00:06]} g6 {[%emt 0:01:22]} 6. e5 {[%emt 0:03:28]} dxe5 {[%emt 0:15:55]} 7. Nxe5 {[%emt 0:00:14]} e6 {[%emt 0:00:15]} 8. Qf3 {[%emt 0:01:22]} Nbd7 {[%emt 0:05:39]} 9. Bf4 {[%emt 0:02:09]} Bg7 {[%emt 0:01:48]} 10. Nxd7 {[%emt 0:01:32]} Nxd7 {[%emt 0:00:51]} 11. Nd2 {[%emt 0:01:02]} e5 {[%emt 0:33:57]} 12. Bg5 {[%emt 0:06:09]} f6 {[%emt 0:00:16]} 13. Be3 {[%emt 0:05:11]} Qe7 {[%emt 0:04:46]} 14. g4 {[%emt 0:02:43]} Rb8 {[%emt 0:00:47]} 15. Ne4 {[%emt 0:00:43]} b6 {[%emt 0:02:48]} 16. Bd5 {[%emt 0:00:36]} Nf8 {[%emt 0:00:32]} 17. O-O-O {[%emt 0:00:43]} Be6 {[%emt 0:03:47]} 18. c4 {[%emt 0:00:19]} Rd8 {[%emt 0:01:49]} 19. Nc3 {[%emt 0:00:22]} Rd6 {[%emt 0:03:03]} 20. h4 {[%emt 0:00:35]} h6 {[%emt 0:00:52]} 21. Rhg1 {[%emt 0:01:42]} Kf7 {[%emt 0:03:17]} 22. Qe4 {[%emt 0:01:11]} g5 {[%emt 0:00:56]} 23. Qf3 {[%emt 0:01:03]} Kg8 {[%emt 0:00:33]} 24. Be4 {[%emt 0:01:46]} Qf7 {[%emt 0:01:15]} 25. Bf5 {[%emt 0:02:39]} Qe8 {[%emt 0:01:54]} 26. Ne4 {[%emt 0:02:22]} Rd8 {[%emt 0:03:08]} 27. hxg5 {[%emt 0:00:24]} hxg5 {[%emt 0:00:27]} 28. Rh1 {[%emt 0:00:24]} Rxh1 {[%emt 0:01:01]} 29. Qxh1 {[%emt 0:01:00]} Ng6 {[%emt 0:00:32]} 30. Ng3 {[%emt 0:04:06]} Rb8 {[%emt 0:03:14]} 31. Qe4 {[%emt 0:04:57]} Bf7 {[%emt 0:00:15]} 32. Rh1 {[%emt 0:01:37]} a5 {[%emt 0:00:08]} 33. Rh2 {[%emt 0:02:53]} Ne7 {[%emt 0:05:17]} 34. Qh1 {[%emt 0:00:49]} Qc6 {[%emt 0:02:53]} 35. Be4 {[%emt 0:01:38]} Qd7 {[%emt 0:00:07]} 36. Nh5 {[%emt 0:03:44]} Qd6 {[%emt 0:01:40]} 37. Nxg7 {[%emt 0:00:42]} Kxg7 {[%emt 0:00:01]} 38. Rh7+ {[%emt 0:00:14]} Kf8 {[%emt 0:00:06]} 39. Qh6+ {[%emt 0:00:08]} Ke8 {[%emt 0:00:06]} 40. Bxg5 {[%emt 0:00:19]} Ng8 {[%emt 0:00:09]} 41. Qg7 {[%emt 0:00:06]} 1-0

[Event "1000GM MLK Day RR IM-Norm 2024"]
[Site "Sunnyvale"]
[Date "2024.01.15"]
[Round "2.5"]
[White "Tang, Dylan"]
[Black "Guo, Ethan"]
[Result "0-1"]
[ECO "B51"]
[WhiteElo "2206"]
[BlackElo "2099"]
[Annotator "RC"]
[PlyCount "102"]
[EventDate "2024.01.12"]
[EventType "tourn"]
[EventCountry "USA"]
[SourceTitle "playchess.com"]
[Source "ChessBase"]
[SourceQuality "1"]
[TimeControl "5400+30"]

1. e4 {[%emt 0:00:01]} c5 {[%emt 0:02:14]} 2. Nf3 {[%emt 0:00:08]} d6 {[%emt 0:00:09]} 3. Bb5+ {[%emt 0:00:12]} Nd7 {[%emt 0:00:06]} 4. a4 {[%emt 0:00:07]} Ngf6 {[%emt 0:00:18]} 5. Nc3 {[%emt 0:00:07]} g6 {[%emt 0:00:20]} 6. a5 {[%emt 0:00:58]} a6 {[%emt 0:00:24]} 7. Bc4 {[%emt 0:00:50]} Bg7 {[%emt 0:00:08]} 8. O-O {[%emt 0:03:48]} O-O {[%emt 0:00:11]} 9. h3 {[%emt 0:06:14]} Nb8 {[%emt 0:09:34]} 10. e5 {[%emt 0:11:00]} Ne8 {[%emt 0:01:27]} 11. d3 {[%emt 0:14:41]} Nc6 {[%emt 0:01:33]} 12. Nd5 {[%emt 0:06:08]} Nxa5 {[%emt 0:02:33]} 13. Rxa5 {[%emt 0:07:19]} e6 {[%emt 0:01:25]} 14. Bd2 {[%emt 0:03:59]} exd5 {[%emt 0:00:11]} 15. Bxd5 {[%emt 0:00:05]} dxe5 {[%emt 0:00:07]} 16. Rxc5 {[%emt 0:00:28]} Nf6 {[%emt 0:04:59]} 17. c4 {[%emt 0:08:09]} b6 {[%emt 0:02:07]} 18. Bxa8 {[%emt 0:00:27]} bxc5 {[%emt 0:00:09]} 19. Be4 {[%emt 0:01:31]} Nxe4 {[%emt 0:01:03]} 20. dxe4 {[%emt 0:00:08]} Qd3 {[%emt 0:00:10]} 21. Bc3 {[%emt 0:01:00]} Qxe4 {[%emt 0:01:14]} 22. Nxe5 {[%emt 0:04:26]} Bb7 {[%emt 0:01:47]} 23. Qf3 {[%emt 0:00:23]} Qxf3 {[%emt 0:00:18]} 24. gxf3 {[%emt 0:00:12]} Re8 {[%emt 0:03:49]} 25. f4 {[%emt 0:00:53]} Bc8 {[%emt 0:00:44]} 26. Kh2 {[%emt 0:01:17]} f6 {[%emt 0:01:51]} 27. Ng4 {[%emt 0:01:04]} Kf7 {[%emt 0:00:43]} 28. b3 {[%emt 0:06:57]} Re4 {[%emt 0:01:09]} 29. Kg3 {[%emt 0:00:53]} h5 {[%emt 0:00:39]} 30. Ne3 {[%emt 0:00:21]} Re7 {[%emt 0:02:57]} 31. Rd1 {[%emt 0:01:33]} Rb7 {[%emt 0:00:48]} 32. Rb1 {[%emt 0:01:06]} Bf8 {[%emt 0:00:41]} 33. Nd5 {[%emt 0:00:22]} Be6 {[%emt 0:00:41]} 34. Kf3 {[%emt 0:03:33]} Bxh3 {[%emt 0:00:53]} 35. Nxf6 {[%emt 0:02:18]} Be6 {[%emt 0:01:44]} 36. Nd5 {[%emt 0:01:57]} Bxd5+ {[%emt 0:00:51]} 37. cxd5 {[%emt 0:00:07]} c4 {[%emt 0:00:05]} 38. b4 {[%emt 0:00:09]} Rb5 {[%emt 0:00:17]} 39. Rd1 {[%emt 0:01:08]} Bxb4 {[%emt 0:01:50]} 40. Bxb4 {[%emt 0:00:33]} Rxb4 {[%emt 0:00:25]} 41. d6 {[%emt 0:00:34]} Ke8 {[%emt 0:01:28]} 42. d7+ {[%emt 0:00:31]} Kd8 {[%emt 0:00:29]} 43. Rd6 {[%emt 0:00:29]} c3 {[%emt 0:00:27]} 44. Rc6 {[%emt 0:01:05]} Rb3 {[%emt 0:01:38]} 45. Ke3 {[%emt 0:01:03]} Kxd7 {[%emt 0:02:17]} 46. Rxa6 {[%emt 0:00:09]} c2+ {[%emt 0:00:25]} 47. Kd2 {[%emt 0:00:05]} Rc3 {[%emt 0:00:10]} 48. Kc1 {[%emt 0:00:10]} Rc6 {[%emt 0:00:31]} 49. Ra8 {[%emt 0:01:08]} Ke6 {[%emt 0:00:25]} 50. Rf8 {[%emt 0:00:11]} Ke7 {[%emt 0:00:16]} 51. Rh8 {[%emt 0:00:07]} Rf6 {[%emt 0:00:51]} 0-1

[Event "1000GM MLK Day RR IM-Norm 2024"]
[Site "Sunnyvale"]
[Date "2024.01.15"]
[Round "3.1"]
[White "Guo, Ethan"]
[Black "Deng, Henry"]
[Result "1/2-1/2"]
[ECO "B45"]
[WhiteElo "2099"]
[BlackElo "2281"]
[Annotator "RC"]
[PlyCount "89"]
[EventDate "2024.01.12"]
[EventType "tourn"]
[EventCountry "USA"]
[SourceTitle "playchess.com"]
[Source "ChessBase"]
[SourceQuality "1"]
[TimeControl "5400+30"]

1. e4 {[%emt 0:09:26]} c5 {[%emt 0:00:23]} 2. Nf3 {[%emt 0:00:07]} e6 {[%emt 0:00:09]} 3. d4 {[%emt 0:00:05]} cxd4 {[%emt 0:00:04]} 4. Nxd4 {[%emt 0:00:10]} Nf6 {[%emt 0:00:02]} 5. Nc3 {[%emt 0:00:10]} Nc6 {[%emt 0:00:04]} 6. Nxc6 {[%emt 0:00:08]} bxc6 {[%emt 0:00:52]} 7. e5 {[%emt 0:00:31]} Nd5 {[%emt 0:00:10]} 8. Ne4 {[%emt 0:00:09]} Bb7 {[%emt 0:02:09]} 9. Be2 {[%emt 0:00:10]} c5 {[%emt 0:00:38]} 10. O-O {[%emt 0:00:52]} Qc7 {[%emt 0:00:01]} 11. Nd6+ {[%emt 0:00:09]} Bxd6 {[%emt 0:00:16]} 12. exd6 {[%emt 0:00:05]} Qc6 {[%emt 0:00:05]} 13. f3 {[%emt 0:00:07]} e5 {[%emt 0:00:39]} 14. c4 {[%emt 0:00:06]} Nf4 {[%emt 0:00:02]} 15. Bxf4 {[%emt 0:00:10]} exf4 {[%emt 0:00:02]} 16. Qd2 {[%emt 0:00:19]} O-O {[%emt 0:00:04]} 17. Bd3 {[%emt 0:00:10]} Rae8 {[%emt 0:00:45]} 18. Rae1 {[%emt 0:00:08]} Re3 {[%emt 0:01:22]} 19. Rxe3 {[%emt 0:00:05]} fxe3 {[%emt 0:00:03]} 20. Qxe3 {[%emt 0:00:12]} Qxd6 {[%emt 0:00:02]} 21. Rd1 {[%emt 0:00:11]} g6 {[%emt 0:01:47]} 22. b3 {[%emt 0:00:04]} Rd8 {[%emt 0:02:20]} 23. h4 {[%emt 0:00:24]} h5 {[%emt 0:04:25]} 24. Bc2 {[%emt 0:00:12]} Qf8 {[%emt 0:02:13]} 25. Qg5 {[%emt 0:00:07]} d6 {[%emt 0:02:57]} 26. Kf2 {[%emt 0:04:13]} Kg7 {[%emt 0:06:20]} 27. f4 {[%emt 1:25:30]} Re8 {[%emt 0:05:40]} 28. g4 {[%emt 0:00:00]} hxg4 {[%emt 0:04:56]} 29. h5 {[%emt 0:00:00]} Bf3 {[%emt 0:23:14]} 30. Rd2 {[%emt 0:00:00]} Qe7 {[%emt 0:03:57]} 31. Qxe7 {[%emt 0:00:00]} Rxe7 {[%emt 0:00:17]} 32. hxg6 {[%emt 0:00:00]} fxg6 {[%emt 0:02:36]} 33. Bd1 {[%emt 0:00:00]} Bxd1 {[%emt 0:02:43]} 34. Rxd1 {[%emt 0:00:00]} Re6 {[%emt 0:01:26]} 35. Kg3 {[%emt 0:00:00]} Re2 {[%emt 0:01:26]} 36. Rxd6 {[%emt 0:00:00]} Rxa2 {[%emt 0:00:03]} 37. Rc6 {[%emt 0:00:00]} Rb2 {[%emt 0:00:33]} 38. Rxc5 {[%emt 0:00:00]} Rxb3+ {[%emt 0:00:03]} 39. Kxg4 {[%emt 0:00:00]} Rc3 {[%emt 0:00:28]} 40. Rc7+ {[%emt 0:00:00]} Kf6 {[%emt 0:00:07]} 41. Rc6+ {[%emt 0:00:00]} Kf7 {[%emt 0:00:04]} 42. Rc7+ {[%emt 0:00:00]} Kf6 {[%emt 0:00:03]} 43. Rxa7 {[%emt 0:00:00]} Rxc4 {[%emt 0:00:02]} 44. Ra6+ {[%emt 0:00:00]} Kf7 {[%emt 0:00:02]} 45. Ra7+ {[%emt 0:00:00]} 1/2-1/2